bitfinex/quotes_BTCUSD_20240617
["timestamp","ask_amount","ask_price","bid_price","bid_amount"]
[1718650853293,2.82750346,67075.0,67074.0,0.001946]
[1718650853503,2.96121602,67075.0,67074.0,0.000946]
[1718650853690,2.96621602,67075.0,67074.0,0.001946]
[1718650853928,2.98021602,67075.0,67074.0,0.001946]
[1718650856085,3.48021602,67075.0,67074.0,0.001946]
[1718650858078,3.53021602,67075.0,67074.0,0.001946]
[1718650858293,0.02,67056.0,67041.0,0.009394]
[1718650858495,0.2,67059.0,67055.0,0.14913]
[1718650858496,0.02,67057.0,67055.0,0.14913]
[1718650858698,0.2177,67056.0,67055.0,0.14913]
[1718650858847,0.2177,67056.0,67055.0,0.15128309]
[1718650859114,0.543,67056.0,67055.0,0.00215309]
[1718650859309,1.288645,67056.0,67055.0,0.00215309]
[1718650859645,1.288645,67056.0,67043.0,0.2514]
[1718650859646,0.02,67051.0,67043.0,0.2514]
[1718650859856,0.2177,67048.0,67045.0,0.149153]
[1718650860185,0.024,67056.0,67048.0,0.149146]
[1718650860393,0.001,67056.0,67055.0,0.447393]
[1718650860636,0.014,67056.0,67055.0,0.001]
[1718650860892,0.07917,67056.0,67055.0,0.00318636]
[1718650861094,0.05917,67056.0,67055.0,0.001]
[1718650861300,0.05917,67056.0,67055.0,0.448393]
[1718650861301,0.014,67056.0,67055.0,0.448393]
[1718650861553,0.014,67056.0,67055.0,0.15231675]
[1718650861970,0.014,67056.0,67055.0,0.00318575]
[1718650862767,0.2377,67057.0,67055.0,0.00218575]
[1718650862938,0.10056126,67056.0,67055.0,0.00218575]
[1718650863148,0.24969026,67056.0,67055.0,0.00218575]
[1718650863349,0.02,67052.0,67048.0,0.3221]
[1718650863550,0.2177,67052.0,67048.0,0.3221]
[1718650863715,0.2377,67052.0,67049.0,0.00218575]
[1718650863912,0.04813923,67051.0,67049.0,0.15132975]
[1718650864347,0.04813923,67051.0,67049.0,0.00218575]
[1718650864753,0.02,67050.0,67049.0,0.00218575]
[1718650864948,0.169142,67050.0,67049.0,0.00218575]
[1718650865315,0.02,67050.0,67049.0,0.00218575]
[1718650865486,0.02,67050.0,67044.0,0.5823]
[1718650865487,0.02,67047.0,67046.0,0.14915]
[1718650865711,0.2177,67047.0,67046.0,0.15133575]
[1718650866060,0.2377,67047.0,67046.0,0.00218575]
[1718650866276,0.02,67046.0,67040.0,0.859925]
[1718650866472,0.02,67046.0,67042.0,0.00218575]
[1718650866695,0.1339586,67045.0,67044.0,0.149155]
[1718650866857,0.1139586,67045.0,67044.0,0.15135025]
[1718650867763,0.1139586,67045.0,67044.0,0.00219525]
[1718650868504,0.1149586,67045.0,67044.0,0.15135025]
[1718650868717,0.1149586,67045.0,67044.0,0.44966125]
[1718650869244,0.1149586,67045.0,67044.0,0.15135025]
[1718650869245,0.001,67045.0,67044.0,0.15135025]
[1718650869625,0.002,67045.0,67044.0,0.15135025]
[1718650870022,0.002,67045.0,67044.0,0.74797225]
[1718650870251,0.002,67045.0,67044.0,1.04628325]
[1718650870451,0.001,67045.0,67044.0,0.74797225]
[1718650870625,0.2177,67050.0,67046.0,0.14915]
[1718650870823,0.2177,67050.0,67047.0,0.00223012]
[1718650871025,0.2377,67050.0,67046.0,0.14915]
[1718650871253,0.2377,67050.0,67047.0,0.00223012]
[1718650871254,0.38431215,67050.0,67047.0,0.00223012]
[1718650871413,0.36431215,67050.0,67047.0,0.00223012]
[1718650871614,0.36431215,67050.0,67041.0,0.009394]
[1718650871615,0.53345515,67050.0,67044.0,0.149154]
[1718650871856,0.38431215,67050.0,67045.0,0.00223012]
[1718650872030,0.53345515,67050.0,67044.0,0.149155]
[1718650872257,0.15271256,67049.0,67045.0,0.00223012]
[1718650872710,0.15271256,67049.0,67045.0,0.15138312]
[1718650872947,0.15271256,67049.0,67046.0,0.149149]
[1718650873124,0.36431215,67050.0,67045.0,0.00223012]
[1718650873335,0.37831215,67050.0,67043.0,0.298315]
[1718650873530,0.51345415,67050.0,67044.0,0.149155]
[1718650873735,0.13584589,67049.0,67042.0,0.29832]
[1718650873946,0.14984589,67049.0,67045.0,0.00223012]
[1718650874180,0.13584589,67049.0,67044.0,0.149154]
[1718650874386,0.13584589,67049.0,67043.0,0.149157]
[1718650874387,0.28498989,67049.0,67043.0,0.149157]
[1718650874588,0.28498989,67049.0,67045.0,0.00223012]
[1718650874815,0.15271256,67048.0,67044.0,0.149155]
[1718650875002,0.15271256,67048.0,67046.0,0.00222848]
[1718650875220,0.30185856,67048.0,67042.0,0.149159]
[1718650875440,0.30185856,67048.0,67041.0,0.009394]
[1718650875441,0.28499089,67049.0,67047.0,0.00222848]
[1718650875651,0.28499089,67049.0,67042.0,0.14916]
[1718650875652,0.149147,67048.0,67042.0,0.14916]
[1718650875861,0.149147,67048.0,67043.0,0.00223074]
[1718650876287,0.2177,67045.0,67043.0,0.00223074]
[1718650876464,0.2177,67045.0,67041.0,0.158556]
[1718650876465,0.2177,67045.0,67041.0,0.009394]
[1718650876674,0.08289839,67044.0,67042.0,0.00223072]
[1718650878292,0.09689839,67044.0,67042.0,0.00223072]
[1718650878496,0.014,67044.0,67042.0,0.00223072]
[1718650879444,0.028,67044.0,67042.0,0.00223072]
[1718650879658,0.2457,67044.0,67042.0,0.00223072]
[1718650880851,0.028,67044.0,67042.0,0.00223072]
[1718650881379,0.014,67044.0,67042.0,0.00223072]
[1718650881818,0.12532909,67044.0,67042.0,0.00223072]
[1718650881988,0.13932909,67044.0,67042.0,0.00223072]
[1718650882144,0.028,67044.0,67042.0,0.00223072]
[1718650882771,0.177156,67044.0,67042.0,0.00223072]
[1718650883098,0.028,67044.0,67042.0,0.00223072]
[1718650883265,0.177155,67044.0,67042.0,0.00223072]
[1718650885144,0.028,67044.0,67042.0,0.00223072]
[1718650885509,0.028,67044.0,67042.0,0.00317672]
[1718650886812,1.30402013,67043.0,67042.0,0.00317672]
[1718650887099,1.32402013,67043.0,67042.0,0.00317672]
[1718650887308,1.62233613,67043.0,67042.0,0.000946]
[1718650887989,2.51728413,67043.0,67042.0,0.000946]
[1718650888222,2.77301301,67043.0,67042.0,0.000946]
[1718650888447,3.07607753,67043.0,67042.0,0.000946]
[1718650888674,3.09007753,67043.0,67042.0,0.000946]
[1718650889818,2.22893,67040.0,67039.0,0.009394]
[1718650890064,1.84442,67036.0,67035.0,0.009394]
[1718650890288,1.342822,67031.0,67013.0,0.590905]
[1718650890519,2.36883103,67031.0,67013.0,0.009405]
[1718650890756,2.69020003,67031.0,67013.0,0.009405]
[1718650891005,2.84291259,67031.0,67013.0,0.009405]
[1718650891221,2.88745346,67031.0,67013.0,0.009405]
[1718650891434,2.162719,67028.0,67013.0,0.009405]
[1718650891639,3.06885903,67028.0,67013.0,0.009405]
[1718650891844,3.39025903,67028.0,67013.0,0.009405]
[1718650892025,3.14458959,67028.0,67027.0,0.0076476]
[1718650892763,3.15858959,67028.0,67027.0,0.0076476]
[1718650894229,3.57097159,67028.0,67027.0,0.0076476]
[1718650894965,4.00890359,67028.0,67027.0,0.0076476]
[1718650895124,3.71052159,67028.0,67027.0,0.0076476]
[1718650895732,3.71075097,67028.0,67027.0,0.0076476]
[1718650897475,1.264508,67017.0,67013.0,0.009405]
[1718650897672,2.192708,67017.0,67013.0,0.009405]
[1718650897876,1.894277,67017.0,67013.0,0.009405]
[1718650898320,1.874277,67017.0,67013.0,0.009405]
[1718650898522,0.4177,67017.0,67013.0,0.009405]
[1718650898736,0.014,67017.0,67016.0,0.744723]
[1718650898995,0.028,67017.0,67016.0,0.59767736]
[1718650900258,0.028,67017.0,67016.0,0.89962424]
[1718650900492,0.028,67017.0,67016.0,1.86493224]
[1718650900719,0.028,67017.0,67016.0,1.81493224]
[1718650900950,0.028,67017.0,67016.0,1.19806024]
[1718650901183,0.014,67017.0,67016.0,0.59767736]
[1718650901414,0.014,67017.0,67016.0,1.04533136]
[1718650901877,0.149208,67021.0,67016.0,0.59767736]
[1718650902109,0.149215,67017.0,67016.0,0.01157736]
[1718650902354,0.163215,67017.0,67016.0,0.009405]
[1718650902569,0.163215,67017.0,67016.0,0.01154707]
[1718650902810,0.475646,67017.0,67016.0,0.01154707]
[1718650903035,0.2467796,67017.0,67016.0,0.01154707]
[1718650903278,0.0975646,67017.0,67016.0,0.01154707]
[1718650903977,0.0835646,67017.0,67016.0,0.01154707]
[1718650904203,0.4644796,67017.0,67016.0,0.01154707]
[1718650904437,1.031646,67017.0,67016.0,0.01154707]
[1718650904662,1.316077,67017.0,67016.0,0.009405]
[1718650904889,0.997646,67017.0,67016.0,0.009405]
[1718650905123,1.1457506,67017.0,67016.0,0.009405]
[1718650905343,1.1657506,67017.0,67016.0,0.009405]
[1718650905559,1.1797506,67017.0,67016.0,0.009405]
[1718650905783,1.1657506,67017.0,67016.0,0.009405]
[1718650906255,0.8414506,67017.0,67016.0,0.009405]
[1718650906696,0.177215,67017.0,67016.0,0.009405]
[1718650906917,0.475646,67017.0,67016.0,0.009405]
[1718650907605,0.177215,67017.0,67016.0,0.009405]
[1718650908082,0.475646,67017.0,67016.0,0.009405]
[1718650909730,0.177215,67017.0,67016.0,0.009405]
[1718650909947,0.028,67017.0,67016.0,0.009405]
[1718650910214,0.028,67017.0,67016.0,1.31515704]
[1718650911124,0.028,67017.0,67016.0,1.61359304]
[1718650911356,0.028,67017.0,67016.0,1.31515704]
[1718650911802,0.028,67017.0,67016.0,1.01672104]
[1718650911917,0.028,67017.0,67016.0,0.71828504]
[1718650912123,0.028,67017.0,67016.0,0.56906704]
[1718650912345,0.028,67017.0,67016.0,1.01672104]
[1718650912595,0.498446,67017.0,67016.0,0.01156704]
[1718650912792,0.200015,67017.0,67016.0,0.01156704]
[1718650912992,0.498446,67017.0,67016.0,0.01156704]
[1718650913430,0.0508,67017.0,67016.0,0.01156704]
[1718650913818,0.200015,67017.0,67016.0,0.01156704]
[1718650914001,0.0508,67017.0,67016.0,0.01156704]
[1718650915825,0.028,67017.0,67016.0,0.75765704]
[1718650917264,0.3376911,67017.0,67016.0,0.16078504]
[1718650917850,0.3376911,67017.0,67016.0,0.45922104]
[1718650918049,0.3376911,67017.0,67016.0,0.01156704]
[1718650918350,0.40730121,67017.0,67016.0,0.01156704]
[1718650918581,1.15337821,67017.0,67016.0,0.01156704]
[1718650918788,0.42130121,67017.0,67016.0,0.01156704]
[1718650918983,0.42130121,67017.0,67016.0,0.009405]
[1718650919182,0.42130121,67017.0,67016.0,0.01159386]
[1718650919383,0.40730121,67017.0,67016.0,0.01159386]
[1718650919589,0.42130121,67017.0,67016.0,0.01159386]
[1718650920339,0.78566408,67017.0,67016.0,0.01159386]
[1718650920593,0.93487908,67017.0,67016.0,0.01159386]
[1718650920804,0.7123788,67017.0,67016.0,0.01159386]
[1718650921024,0.5631638,67017.0,67016.0,0.01159386]
[1718650921201,1.0108098,67017.0,67016.0,0.01159386]
[1718650921440,1.3292408,67017.0,67016.0,0.01159386]
[1718650921669,1.9339408,67017.0,67016.0,0.01159386]
[1718650921891,2.08666968,67017.0,67016.0,0.009405]
[1718650922115,2.58510068,67017.0,67016.0,0.009405]
[1718650922597,2.45710068,67017.0,67016.0,0.009405]
[1718650922796,2.57110068,67017.0,67016.0,0.009405]
[1718650923032,2.67465068,67017.0,67016.0,0.009405]
[1718650923441,3.00908168,67017.0,67016.0,0.009405]
[1718650923664,4.35043515,67017.0,67016.0,0.009405]
[1718650923871,4.81495732,67017.0,67016.0,0.009405]
[1718650924367,5.00080207,67017.0,67016.0,0.009405]
[1718650924576,4.83591948,67017.0,67016.0,0.009405]
[1718650924701,5.00153384,67017.0,67016.0,0.009405]
[1718650925345,4.91666149,67017.0,67016.0,0.009405]
[1718650925660,4.83591948,67017.0,67016.0,0.009405]
[1718650925872,4.82191948,67017.0,67016.0,0.009405]
[1718650926072,4.83591948,67017.0,67016.0,0.009405]
[1718650926279,5.33135989,67017.0,67016.0,0.009405]
[1718650926494,4.85037611,67017.0,67016.0,0.009405]
[1718650926698,4.9170878,67017.0,67016.0,0.009405]
[1718650926822,3.68620511,67017.0,67016.0,0.009405]
[1718650927028,2.61112528,67017.0,67016.0,0.009405]
[1718650927220,2.31624764,67017.0,67016.0,0.009405]
[1718650927867,1.14190376,67017.0,67016.0,0.009405]
[1718650928068,1.29111876,67017.0,67016.0,0.009405]
[1718650928277,1.58954976,67017.0,67016.0,0.009405]
[1718650928480,1.27111876,67017.0,67016.0,0.009405]
[1718650928678,1.29111876,67017.0,67016.0,0.009405]
[1718650928876,1.84095622,67017.0,67016.0,0.009405]
[1718650929120,2.41445622,67017.0,67016.0,0.009405]
[1718650929327,2.59136322,67017.0,67016.0,0.009405]
[1718650929496,2.4819312,67017.0,67016.0,0.009405]
[1718650929696,2.43745622,67017.0,67016.0,0.009405]
[1718650930010,2.43001622,67017.0,67016.0,0.009405]
[1718650930223,2.43154607,67017.0,67016.0,0.009405]
[1718650930439,3.01404018,67017.0,67016.0,0.009405]
[1718650930647,3.29656469,67017.0,67016.0,0.009405]
[1718650930776,3.06935621,67017.0,67016.0,0.009405]
[1718650930977,3.53395536,67017.0,67016.0,0.009405]
[1718650931193,3.16935263,67017.0,67016.0,0.009405]
[1718650931387,3.53395536,67017.0,67016.0,0.009405]
[1718650931732,3.95088612,67017.0,67016.0,0.009405]
[1718650931875,4.24931712,67017.0,67016.0,0.009405]
[1718650932080,4.1602909,67017.0,67016.0,0.009405]
[1718650932446,4.77157367,67017.0,67016.0,0.009405]
[1718650932656,4.65965897,67017.0,67016.0,0.009405]
[1718650932874,5.00808997,67017.0,67016.0,0.009405]
[1718650933081,4.82094174,67017.0,67016.0,0.009405]
[1718650933280,4.70965897,67017.0,67016.0,0.009405]
[1718650933824,5.00808997,67017.0,67016.0,0.009405]
[1718650933995,5.32487858,67017.0,67016.0,0.009405]
[1718650934252,5.15511683,67017.0,67016.0,0.009405]
[1718650934449,5.28865616,67017.0,67016.0,0.009405]
[1718650934775,2.150997,67014.0,67013.0,0.009405]
[1718650935013,3.71804232,67014.0,67013.0,0.009405]
[1718650935288,8.41018205,67014.0,67013.0,0.009405]
[1718650935476,8.31376205,67014.0,67013.0,0.009405]
[1718650935674,8.30837243,67014.0,67013.0,0.009405]
[1718650936381,8.35632225,67014.0,67013.0,0.009405]
[1718650936595,8.45561335,67014.0,67013.0,0.009405]
[1718650936764,7.74795235,67014.0,67013.0,0.009405]
[1718650937016,7.6081217,67014.0,67013.0,0.009405]
[1718650937825,7.44162747,67014.0,67013.0,0.009405]
[1718650938146,6.66036169,67014.0,67013.0,0.009405]
[1718650938376,6.56092582,67014.0,67013.0,0.009405]
[1718650938522,6.85937082,67014.0,67013.0,0.009405]
[1718650938730,6.95887246,67014.0,67013.0,0.009405]
[1718650938979,1.334216,67007.0,67006.0,0.009405]
[1718650939110,2.53543383,67007.0,67006.0,0.009405]
[1718650939537,4.86872283,67007.0,67006.0,0.009405]
[1718650939795,4.66629656,67007.0,67006.0,0.009405]
[1718650939911,3.62110627,67007.0,67006.0,0.009405]
[1718650940108,3.81024373,67007.0,67006.0,0.009405]
[1718650940443,4.10871973,67007.0,67006.0,0.009405]
[1718650940609,4.48441196,67007.0,67006.0,0.009405]
[1718650940823,4.49841196,67007.0,67006.0,0.009405]
[1718650941036,5.23962452,67007.0,67006.0,0.009405]
[1718650941437,5.350912,67007.0,67006.0,0.009405]
[1718650941589,5.23962452,67007.0,67006.0,0.009405]
[1718650941989,5.23265008,67007.0,67006.0,0.009405]
[1718650942806,5.38965008,67007.0,67006.0,0.00600765]
[1718650943371,5.48940528,67007.0,67006.0,0.00600765]
[1718650943568,5.60058374,67007.0,67006.0,0.00600765]
[1718650943779,5.48940528,67007.0,67006.0,0.00600765]
[1718650943996,5.38288344,67007.0,67006.0,0.00600765]
[1718650944366,5.30210744,67007.0,67006.0,0.00600765]
[1718650944567,5.60058577,67007.0,67006.0,0.00600765]
[1718650944713,5.60154535,67007.0,67006.0,0.00600765]
[1718650945060,5.90143064,67007.0,67006.0,0.00600765]
[1718650945267,5.79025015,67007.0,67006.0,0.00600765]
[1718650945398,5.60290238,67007.0,67006.0,0.00600765]
[1718650945624,1.589732,67005.0,67004.0,0.009394]
[1718650945804,2.35952646,67005.0,67004.0,0.009394]
[1718650946003,5.46983846,67005.0,67004.0,0.009394]
[1718650946251,5.81205918,67005.0,67004.0,0.009394]
[1718650946465,5.88024568,67005.0,67004.0,0.009394]
[1718650947066,5.89424568,67005.0,67004.0,0.009394]
[1718650947239,5.90559984,67005.0,67004.0,0.009394]
[1718650947447,5.96752845,67005.0,67004.0,0.009394]
[1718650947711,4.59790288,67005.0,67004.0,0.009394]
[1718650947887,3.87974058,67005.0,67004.0,0.009394]
[1718650948244,3.87973724,67005.0,67004.0,0.009394]
[1718650948451,4.04454169,67005.0,67004.0,0.009394]
[1718650948649,3.95566796,67005.0,67004.0,0.009394]
[1718650948881,4.10838052,67005.0,67004.0,0.009394]
[1718650949315,4.10838052,67005.0,66988.0,0.3049]
[1718650949316,0.2,66991.0,66988.0,0.3049]
[1718650949522,0.366978,66989.0,66988.0,0.3049]
[1718650949726,0.4355123,66989.0,66988.0,0.3049]
[1718650949919,0.74536656,66989.0,66988.0,0.3049]
[1718650950150,0.59608856,66989.0,66988.0,0.3049]
[1718650950328,1.04392256,66989.0,66988.0,0.3049]
[1718650950502,0.74536656,66989.0,66988.0,0.3049]
[1718650950725,0.59608856,66989.0,66988.0,0.3049]
[1718650951401,0.61008856,66989.0,66988.0,0.3049]
[1718650951585,0.77336656,66989.0,66988.0,0.3049]
[1718650951935,1.07192256,66989.0,66988.0,0.3049]
[1718650952604,1.17187915,66989.0,66988.0,0.3049]
[1718650953369,1.47043515,66989.0,66988.0,0.3049]
[1718650953993,1.49343515,66989.0,66988.0,0.3049]
[1718650954200,1.49411739,66989.0,66988.0,0.3049]
[1718650955791,1.3941608,66989.0,66988.0,0.3049]
[1718650958027,0.6477708,66989.0,66988.0,0.3049]
[1718650958233,0.6247708,66989.0,66988.0,0.3049]
[1718650958357,0.7740488,66989.0,66988.0,0.30720249]
[1718650958565,1.0726048,66989.0,66988.0,0.00230249]
[1718650958772,1.74512325,66989.0,66988.0,0.00230249]
[1718650958981,1.7462168,66989.0,66988.0,0.00230249]
[1718650959220,1.89894568,66989.0,66988.0,0.00230249]
[1718650959431,2.08849568,66989.0,66988.0,0.00230249]
[1718650959636,0.83595,66988.0,66987.0,0.009405]
[1718650959840,1.49235602,66988.0,66987.0,0.009405]
[1718650960056,1.83541431,66988.0,66987.0,0.009405]
[1718650960295,0.298605,66978.0,66975.0,0.242435]
[1718650960492,1.13229698,66978.0,66975.0,0.242435]
[1718650960702,1.50141877,66978.0,66975.0,0.242435]
[1718650960907,1.52441877,66978.0,66975.0,0.242435]
[1718650961315,1.76645629,66978.0,66975.0,0.000935]
[1718650961537,0.298614,66976.0,66975.0,0.000935]
[1718650961755,1.36894357,66976.0,66975.0,0.000935]
[1718650961951,0.69618161,66976.0,66975.0,0.000935]
[1718650962154,1.3659763,66976.0,66975.0,0.000935]
[1718650962357,1.62009357,66976.0,66975.0,0.000935]
[1718650962564,1.09847526,66976.0,66975.0,0.000935]
[1718650962762,1.16898911,66976.0,66975.0,0.000935]
[1718650962981,1.79202416,66976.0,66975.0,0.000935]
[1718650963184,1.73342216,66976.0,66975.0,0.000935]
[1718650963385,1.75452038,66976.0,66975.0,0.000935]
[1718650963589,1.71003199,66976.0,66975.0,0.000935]
[1718650964216,2.00864599,66976.0,66975.0,0.000935]
[1718650964381,2.02264599,66976.0,66975.0,0.000935]
[1718650964578,2.03664599,66976.0,66975.0,0.000935]
[1718650964879,2.16353272,66976.0,66975.0,0.000935]
[1718650965083,2.13538843,66976.0,66975.0,0.000935]
[1718650965458,2.14938843,66976.0,66975.0,0.000935]
[1718650966679,2.19390298,66976.0,66975.0,0.000935]
[1718650966888,2.16338843,66976.0,66975.0,0.000935]
[1718650967094,2.14938843,66976.0,66975.0,0.000935]
[1718650967289,2.19389656,66976.0,66975.0,0.000935]
[1718650967697,2.14938843,66976.0,66975.0,0.000935]
[1718650968115,2.16338843,66976.0,66975.0,0.000935]
[1718650968312,2.20789647,66976.0,66975.0,0.000935]
[1718650968578,2.67212647,66976.0,66975.0,0.000935]
[1718650968782,2.62761843,66976.0,66975.0,0.000935]
[1718650968934,2.64776899,66976.0,66975.0,0.000935]
[1718650969390,2.69226071,66976.0,66975.0,0.000935]
[1718650970102,2.62189115,66976.0,66975.0,0.000935]
[1718650970406,2.40419115,66976.0,66975.0,0.000935]
[1718650970533,2.94630592,66976.0,66975.0,0.000935]
[1718650970730,2.64769192,66976.0,66975.0,0.000935]
[1718650971006,2.64765135,66976.0,66975.0,0.000935]
[1718650971706,2.57739943,66976.0,66975.0,0.000935]
[1718650972524,2.69121003,66976.0,66975.0,0.000935]
[1718650972871,2.69122937,66976.0,66975.0,0.000935]
[1718650973074,2.98984337,66976.0,66975.0,0.000935]
[1718650973275,3.45456558,66976.0,66975.0,0.000935]
[1718650973615,2.98984337,66976.0,66975.0,0.000935]
[1718650974381,2.94538987,66976.0,66975.0,0.000935]
[1718650975112,2.94538987,66976.0,66960.0,0.059405]
[1718650975113,0.2897,66966.0,66960.0,0.009405]
[1718650975419,0.2897,66966.0,66959.0,0.009405]
[1718650975420,0.537727,66960.0,66959.0,0.009405]
[1718650975661,2.06574158,66960.0,66959.0,0.009405]
[1718650975858,2.08874158,66960.0,66959.0,0.009405]
[1718650976042,2.30644158,66960.0,66959.0,0.009405]
[1718650976242,2.45915414,66960.0,66959.0,0.009405]
[1718650976439,1.70907158,66960.0,66959.0,0.009405]
[1718650977240,0.946835,66949.0,66948.0,0.009405]
[1718650977441,1.92585214,66949.0,66948.0,0.009405]
[1718650977640,2.04905384,66949.0,66948.0,0.01183602]
[1718650977950,2.11711197,66949.0,66948.0,0.009405]
[1718650978126,2.26982453,66949.0,66948.0,0.009405]
[1718650978326,2.2914664,66949.0,66948.0,0.009405]
[1718650978527,2.06229092,66949.0,66948.0,0.009405]
[1718650979086,1.90957836,66949.0,66948.0,0.009405]
[1718650979517,1.84001984,66949.0,66948.0,0.009405]
[1718650979640,2.13875384,66949.0,66948.0,0.009405]
[1718650980279,0.70212226,66949.0,66948.0,0.229105]
[1718650980491,0.31005596,66949.0,66948.0,0.930113]
[1718650980733,0.31005596,66949.0,66948.0,0.93254402]
[1718650980883,0.2177,66953.0,66948.0,0.48443602]
[1718650981089,0.2177,66953.0,66951.0,0.1]
[1718650981311,0.2177,66953.0,66952.0,0.933681]
[1718650981515,0.2177,66953.0,66952.0,0.4856]
[1718650981772,0.67708152,66953.0,66952.0,0.48803102]
[1718650981966,0.52772352,66953.0,66952.0,0.48803102]
[1718650982175,0.97579852,66953.0,66952.0,0.48803102]
[1718650982370,1.72349577,66953.0,66952.0,0.48803102]
[1718650982664,0.70008152,66953.0,66952.0,0.48803102]
[1718650982869,0.52772352,66953.0,66952.0,0.73739102]
[1718650983119,0.2177,66953.0,66952.0,1.10611202]
[1718650983535,0.2177,66953.0,66952.0,0.80739102]
[1718650983700,0.2177,66953.0,66952.0,0.71678502]
[1718650983945,0.2,66956.0,66955.0,0.149354]
[1718650984148,0.4177,66956.0,66954.0,0.05]
[1718650984599,0.4177,66956.0,66955.0,0.10243102]
[1718650984795,0.4177,66956.0,66955.0,0.12243102]
[1718650985007,0.4177,66956.0,66955.0,0.10243102]
[1718650985923,0.4317,66956.0,66955.0,0.10243102]
[1718650986344,0.75569406,66956.0,66955.0,0.12243102]
[1718650986584,0.75569406,66956.0,66955.0,0.10243102]
[1718650986789,0.74169406,66956.0,66955.0,0.36663102]
[1718650987007,0.75569406,66956.0,66955.0,0.26663102]
[1718650987193,1.30247606,66956.0,66955.0,0.26663102]
[1718650987397,0.84042206,66956.0,66955.0,0.26663102]
[1718650987607,0.85442206,66956.0,66955.0,0.26663102]
[1718650987816,1.60117906,66956.0,66955.0,0.00243102]
[1718650988020,0.448068,66954.0,66953.0,0.05]
[1718650988274,1.05677406,66954.0,66953.0,0.05]
[1718650988472,1.05677406,66954.0,66949.0,0.527]
[1718650988473,0.149365,66950.0,66949.0,0.527]
[1718650988676,0.688795,66950.0,66949.0,0.527]
[1718650988884,0.99878906,66950.0,66949.0,0.527]
[1718650989105,0.648101,66949.0,66948.0,0.009405]
[1718650989303,1.80217389,66949.0,66948.0,0.009405]
[1718650989927,1.50343989,66949.0,66948.0,0.009405]
[1718650990135,0.60387601,66949.0,66948.0,0.009405]
[1718650990336,0.73024301,66949.0,66948.0,0.265905]
[1718650990749,0.58087601,66949.0,66948.0,0.26837966]
[1718650990947,0.74424301,66949.0,66948.0,0.26837966]
[1718650991306,0.74307867,66949.0,66948.0,0.26837966]
[1718650991495,0.75707867,66949.0,66948.0,0.26837966]
[1718650992123,0.75707867,66949.0,66948.0,0.36837966]
[1718650992322,0.60771167,66949.0,66948.0,0.38837966]
[1718650992541,0.53799406,66949.0,66948.0,0.59677966]
[1718650992865,0.53803014,66949.0,66948.0,0.59677966]
[1718650993212,0.53803014,66949.0,66948.0,0.74614866]
[1718650993437,0.53803014,66949.0,66948.0,1.04488766]
[1718650993636,0.53803014,66949.0,66948.0,0.59677966]
[1718650993843,0.53803014,66949.0,66948.0,0.47677966]
[1718650994066,0.53803014,66949.0,66948.0,0.57677966]
[1718650994658,0.53803014,66949.0,66948.0,0.72614866]
[1718650994860,0.53803014,66949.0,66948.0,0.47677966]
[1718650995282,0.68739714,66949.0,66948.0,0.47677966]
[1718650995483,0.75661091,66949.0,66948.0,0.47677966]
[1718650995701,0.60724391,66949.0,66948.0,0.474305]
[1718650995908,0.90597791,66949.0,66948.0,0.474305]
[1718650996165,1.61330658,66949.0,66948.0,0.01187966]
[1718650996388,1.98126504,66949.0,66948.0,0.01187966]
[1718650996608,1.98126504,66949.0,66948.0,0.009405]
[1718650997251,1.98137821,66949.0,66948.0,0.009405]
[1718650997626,1.96737821,66949.0,66948.0,0.009405]
[1718650997861,1.04146877,66949.0,66948.0,0.009405]
[1718650997985,0.97443477,66949.0,66948.0,0.218305]
[1718650998194,0.96043477,66949.0,66948.0,0.22078817]
[1718650998792,1.27316877,66949.0,66948.0,0.22078817]
[1718650998991,0.97443477,66949.0,66948.0,0.22078817]
[1718650999266,1.27316877,66949.0,66948.0,0.22078817]
[1718650999496,1.57190277,66949.0,66948.0,0.22078817]
[1718650999703,2.38857821,66949.0,66948.0,0.01188817]
[1718650999826,2.41157821,66949.0,66948.0,0.01188817]
[1718651000028,2.41157821,66949.0,66948.0,0.009405]
[1718651001068,1.90034421,66949.0,66948.0,0.009405]
[1718651001400,2.19907821,66949.0,66948.0,0.009405]
[1718651001576,1.90034421,66949.0,66948.0,0.009405]
[1718651001956,2.19907821,66949.0,66948.0,0.009405]
[1718651002162,1.57190277,66949.0,66948.0,0.009405]
[1718651002372,1.57190277,66949.0,66948.0,0.569405]
[1718651002373,0.60736777,66949.0,66948.0,0.569405]
[1718651002777,0.60736777,66949.0,66948.0,0.57189879]
[1718651003001,0.60736777,66949.0,66948.0,0.74126779]
[1718651003334,0.60736777,66949.0,66948.0,0.59189879]
[1718651003558,0.60736777,66949.0,66948.0,1.04000679]
[1718651003770,0.40736777,66949.0,66948.0,1.04000679]
[1718651003901,0.40736777,66949.0,66948.0,0.74126779]
[1718651004324,0.40736777,66949.0,66948.0,1.04000679]
[1718651004731,0.40736777,66949.0,66948.0,0.64189879]
[1718651005497,0.40736777,66949.0,66948.0,1.09000679]
[1718651005710,0.40736777,66949.0,66948.0,1.38874579]
[1718651005934,0.33803014,66949.0,66948.0,1.09000679]
[1718651006113,0.33803014,66949.0,66948.0,1.14000679]
[1718651006271,0.33803014,66949.0,66948.0,1.43874579]
[1718651006695,0.33803014,66949.0,66948.0,1.14000679]
[1718651006895,0.33803014,66949.0,66948.0,0.84126779]
[1718651007274,0.33803014,66949.0,66948.0,0.82126779]
[1718651007479,0.47390551,66949.0,66948.0,0.06189879]
[1718651007821,0.47390551,66949.0,66948.0,0.526605]
[1718651007822,0.60368957,66949.0,66948.0,0.526605]
[1718651008030,0.59468957,66949.0,66948.0,0.526605]
[1718651008201,0.60868957,66949.0,66948.0,0.52909879]
[1718651008404,0.60868957,66949.0,66948.0,0.526605]
[1718651008611,0.60868957,66949.0,66948.0,0.52909879]
[1718651009014,0.75805657,66949.0,66948.0,0.52909879]
[1718651009194,1.05679057,66949.0,66948.0,0.52909879]
[1718651009587,0.74405657,66949.0,66948.0,0.52909879]
[1718651009756,0.59468957,66949.0,66948.0,0.62909879]
[1718651009964,0.59468957,66949.0,66948.0,0.64909879]
[1718651010167,0.59468957,66949.0,66948.0,0.62909879]
[1718651010324,0.59468957,66949.0,66948.0,0.52909879]
[1718651010844,0.74405657,66949.0,66948.0,0.52909879]
[1718651011016,1.04279057,66949.0,66948.0,0.52909879]